[Event "Klatovy Open-B 2024"]
[Site "Klatovy"]
[Date "2024.06.30"]
[Round "2.9"]
[White "Svejdar, Pavel"]
[Black "Devera, Filip"]
[Result "1-0"]
[ECO "C01"]
[WhiteElo "1721"]
[BlackElo "1641"]
[Annotator "NA RC"]
[PlyCount "73"]
[EventDate "2024.06.21"]
[EventType "swiss"]
[EventCountry "CZE"]
[SourceTitle "playchess.com"]
[Source "ChessBase"]
[SourceQuality "1"]
[TimeControl "40/7200:0"]

1. e4 {[%emt 0:00:00]} e6 {[%emt 0:00:00]} 2. Nf3 {[%emt 0:00:00]} d5 {[%emt 0:00:00]} 3. exd5 {[%emt 0:00:00]} exd5 {[%emt 0:00:00]} 4. d4 {[%emt 0:00:00]} Nc6 {[%emt 0:00:00]} 5. Be2 {[%emt 0:02:05]} Bd6 {[%emt 0:00:00]} 6. Nc3 {[%emt 0:05:00]} Nge7 {[%emt 0:00:25]} 7. Nb5 {[%emt 0:05:10]} Bb4+ {[%emt 0:03:14]} 8. Nc3 {[%emt 0:05:40]} Bf5 {[%emt 0:00:30]} 9. Bg5 {[%emt 0:06:11]} f6 {[%emt 0:02:21]} 10. Be3 {[%emt 0:05:00]} Qd7 {[%emt 0:00:30]} 11. a3 {[%emt 0:01:32]} Bd6 {[%emt 0:03:51]} 12. Nb5 {[%emt 0:01:21]} g5 {[%emt 0:01:28]} 13. Nxd6+ {[%emt 0:04:09]} Qxd6 {[%emt 0:00:40]} 14. Nd2 {[%emt 0:10:39]} h5 {[%emt 0:05:25]} 15. b4 {[%emt 0:06:03]} Bg6 {[%emt 0:03:32]} 16. Nb3 {[%emt 0:01:45]} b6 {[%emt 0:02:07]} 17. Qd2 {[%emt 0:08:15]} O-O-O {[%emt 0:06:36]} 18. Ba6+ {[%emt 0:03:19]} Kd7 {[%emt 0:02:14]} 19. Bb5 {[%emt 0:08:59]} Rde8 {[%emt 0:03:31]} 20. O-O-O {[%emt 0:10:45]} a6 {[%emt 0:04:30]} 21. Bd3 {[%emt 0:06:15]} Nf5 {[%emt 0:05:42]} 22. Rde1 {[%emt 0:07:07]} Re7 {[%emt 0:02:05]} 23. Bxf5+ {[%emt 0:05:48]} Bxf5 {[%emt 0:00:00]} 24. f4 {[%emt 0:00:44]} Rhe8 {[%emt 0:06:47]} 25. fxg5 {[%emt 0:03:44]} fxg5 {[%emt 0:00:54]} 26. g3 {[%emt 0:00:15]} g4 {[%emt 0:00:58]} 27. Rhf1 {[%emt 0:01:23]} Qg6 {[%emt 0:01:24]} 28. Rf2 {[%emt 0:00:25]} Bxc2 {[%emt 0:00:27]} 29. Qc3 {[%emt 0:01:08]} Bxb3 {[%emt 0:01:45]} 30. Qxb3 {[%emt 0:00:00]} Kd6 {[%emt 0:00:47]} 31. Bf4+ {[%emt 0:00:00]} Kd7 {[%emt 0:00:38]} 32. Qxd5+ {[%emt 0:00:00]} Kc8 {[%emt 0:00:00]} 33. Rxe7 {[%emt 0:00:54]} Rxe7 {[%emt 0:00:03]} 34. Rc2 {[%emt 0:00:37]} Re1+ {[%emt 0:01:07]} 35. Kb2 {[%emt 0:00:00]} Qd3 {[%emt 0:00:29]} 36. Qxc6 {[%emt 0:00:03]} Qxd4+ {[%emt 0:00:13]} 37. Qc3 {[%emt 0:00:00]} 1-0

[Event "Klatovy Open-B 2024"]
[Site "Klatovy"]
[Date "2024.06.30"]
[Round "2.10"]
[White "Bukvaj, Jan"]
[Black "Vavrousek, Petr"]
[Result "1-0"]
[ECO "D15"]
[WhiteElo "1652"]
[BlackElo "1710"]
[Annotator "NA RC"]
[PlyCount "95"]
[EventDate "2024.06.21"]
[EventType "swiss"]
[EventCountry "CZE"]
[SourceTitle "playchess.com"]
[Source "ChessBase"]
[SourceQuality "1"]
[TimeControl "40/7200:0"]

1. c4 {[%emt 0:00:00]} c6 {[%emt 0:00:00]} 2. Nf3 {[%emt 0:00:00]} Nf6 {[%emt 0:00:00]} 3. Nc3 {[%emt 0:00:44]} d5 {[%emt 0:01:48]} 4. d4 {[%emt 0:01:45]} a6 {[%emt 0:00:02]} 5. Bf4 {[%emt 0:04:36]} dxc4 {[%emt 0:01:31]} 6. e3 {[%emt 0:02:04]} b5 {[%emt 0:00:00]} 7. b3 {[%emt 0:05:49]} Qa5 {[%emt 0:04:44]} 8. Qd2 {[%emt 0:05:26]} Nd5 {[%emt 0:00:53]} 9. Nxd5 {[%emt 0:00:25]} Qxd2+ {[%emt 0:00:00]} 10. Nxd2 {[%emt 0:00:00]} cxd5 {[%emt 0:00:00]} 11. bxc4 {[%emt 0:00:00]} dxc4 {[%emt 0:00:00]} 12. a4 {[%emt 0:07:26]} Bb7 {[%emt 0:00:00]} 13. axb5 {[%emt 0:00:00]} axb5 {[%emt 0:00:00]} 14. Rxa8 {[%emt 0:00:00]} Bxa8 {[%emt 0:00:00]} 15. Bxb8 {[%emt 0:00:00]} e6 {[%emt 0:00:00]} 16. Ba7 {[%emt 0:09:48]} Bb4 {[%emt 0:00:12]} 17. Bc5 {[%emt 0:01:52]} Bxc5 {[%emt 0:00:37]} 18. dxc5 {[%emt 0:00:10]} O-O {[%emt 0:00:00]} 19. Nf3 {[%emt 0:08:56]} Rc8 {[%emt 0:01:56]} 20. Kd2 {[%emt 0:02:20]} Rxc5 {[%emt 0:00:08]} 21. Kc3 {[%emt 0:00:00]} Bc6 {[%emt 0:09:29]} 22. Be2 {[%emt 0:02:39]} f6 {[%emt 0:02:29]} 23. Rd1 {[%emt 0:10:48]} Kf7 {[%emt 0:03:01]} 24. Kb4 {[%emt 0:01:53]} Rf5 {[%emt 0:03:43]} 25. Rd6 {[%emt 0:06:29]} Be8 {[%emt 0:04:28]} 26. g4 {[%emt 0:05:50]} Ke7 {[%emt 0:00:00]} 27. Rxe6+ {[%emt 0:04:10]} Kxe6 {[%emt 0:00:00]} 28. Nd4+ {[%emt 0:00:00]} Ke5 {[%emt 1:24:59]} 29. Nxf5 {[%emt 0:36:50]} g6 {[%emt 0:00:00]} 30. Nd4 {[%emt 0:00:00]} Ke4 {[%emt 0:00:00]} 31. Kc3 {[%emt 0:00:00]} Kd5 {[%emt 0:00:00]} 32. Bf3+ {[%emt 0:00:00]} Kc5 {[%emt 0:00:00]} 33. Nc2 {[%emt 0:00:00]} Bd7 {[%emt 0:00:00]} 34. Nb4 {[%emt 0:00:00]} Bc8 {[%emt 0:00:00]} 35. h4 {[%emt 0:00:00]} g5 {[%emt 0:00:00]} 36. hxg5 {[%emt 0:00:00]} fxg5 {[%emt 0:00:00]} 37. Be2 {[%emt 0:00:00]} Bb7 {[%emt 0:00:00]} 38. f4 {[%emt 0:00:00]} h6 {[%emt 0:00:00]} 39. f5 {[%emt 0:00:00]} Bc8 {[%emt 0:00:00]} 40. e4 {[%emt 0:00:00]} Bb7 {[%emt 0:00:00]} 41. e5 {[%emt 1:40:05]} Bc8 {[%emt 0:46:10]} 42. Bf3 {[%emt 0:00:47]} h5 {[%emt 0:00:00]} 43. e6 {[%emt 0:02:03]} h4 {[%emt 0:00:00]} 44. e7 {[%emt 0:00:00]} Bd7 {[%emt 0:00:01]} 45. Bc6 {[%emt 0:00:14]} Kd6 {[%emt 0:00:26]} 46. e8=Q {[%emt 0:02:00]} Bxe8 {[%emt 0:00:00]} 47. Bxe8 {[%emt 0:00:00]} Ke5 {[%emt 0:00:00]} 48. Bxb5 {[%emt 0:00:40]} 1-0

[Event "Klatovy Open-B 2024"]
[Site "Klatovy"]
[Date "2024.06.30"]
[Round "2.11"]
[White "Vavrinkova, Jitka"]
[Black "Rektor, David"]
[Result "1/2-1/2"]
[ECO "B12"]
[WhiteElo "1707"]
[BlackElo "1625"]
[Annotator "NA RC"]
[PlyCount "62"]
[EventDate "2024.06.21"]
[EventType "swiss"]
[EventCountry "CZE"]
[SourceTitle "playchess.com"]
[Source "ChessBase"]
[SourceQuality "1"]
[TimeControl "40/7200:0"]

1. e4 {[%emt 0:00:00]} c6 {[%emt 0:05:18]} 2. d4 {[%emt 0:00:00]} d5 {[%emt 0:00:00]} 3. e5 {[%emt 0:00:00]} c5 {[%emt 0:00:00]} 4. c3 {[%emt 0:00:55]} Nc6 {[%emt 0:00:00]} 5. Nf3 {[%emt 0:00:15]} Bg4 {[%emt 0:00:00]} 6. Be2 {[%emt 0:00:06]} e6 {[%emt 0:00:00]} 7. Be3 {[%emt 0:05:23]} cxd4 {[%emt 0:00:27]} 8. cxd4 {[%emt 0:00:15]} Nge7 {[%emt 0:00:23]} 9. Nbd2 {[%emt 0:04:09]} Qb6 {[%emt 0:09:28]} 10. Nb3 {[%emt 0:01:24]} Nf5 {[%emt 0:02:41]} 11. O-O {[%emt 0:01:48]} a5 {[%emt 0:00:45]} 12. a4 {[%emt 0:07:35]} Bb4 {[%emt 0:01:20]} 13. h3 {[%emt 0:02:57]} Bxf3 {[%emt 0:00:00]} 14. Bxf3 {[%emt 0:00:00]} O-O {[%emt 0:00:21]} 15. Bg4 {[%emt 0:05:18]} Nce7 {[%emt 0:10:27]} 16. Qd3 {[%emt 0:05:35]} Rfc8 {[%emt 0:04:00]} 17. Rfc1 {[%emt 0:02:36]} Rxc1+ {[%emt 0:20:00]} 18. Rxc1 {[%emt 0:00:00]} Nxe3 {[%emt 0:04:33]} 19. fxe3 {[%emt 0:01:02]} Rc8 {[%emt 0:02:24]} 20. Rxc8+ {[%emt 0:02:06]} Nxc8 {[%emt 0:00:07]} 21. Nd2 {[%emt 0:06:54]} Qc6 {[%emt 0:05:09]} 22. b3 {[%emt 0:00:10]} Qc1+ {[%emt 0:12:53]} 23. Nf1 {[%emt 0:00:00]} Qc6 {[%emt 0:00:25]} 24. Bf3 {[%emt 0:01:55]} Ne7 {[%emt 0:05:53]} 25. Ng3 {[%emt 0:00:22]} g6 {[%emt 0:00:49]} 26. Kf2 {[%emt 0:03:25]} Qc1 {[%emt 0:01:05]} 27. Qd1 {[%emt 0:00:40]} Qc3 {[%emt 0:01:43]} 28. Ne2 {[%emt 0:08:06]} Qb2 {[%emt 0:00:36]} 29. Qd3 {[%emt 0:02:56]} Nf5 {[%emt 0:05:49]} 30. e4 {[%emt 0:05:03]} dxe4 {[%emt 0:05:58]} 31. Bxe4 {[%emt 0:00:09]} b6 {[%emt 0:17:26]} 1/2-1/2

[Event "Klatovy Open-B 2024"]
[Site "Klatovy"]
[Date "2024.06.30"]
[Round "2.12"]
[White "Cervenka, Jakub"]
[Black "Vo, Daniel"]
[Result "1-0"]
[ECO "B92"]
[WhiteElo "1638"]
[BlackElo "1705"]
[Annotator "NA RC"]
[PlyCount "109"]
[EventDate "2024.06.21"]
[EventType "swiss"]
[EventCountry "CZE"]
[SourceTitle "playchess.com"]
[Source "ChessBase"]
[SourceQuality "1"]
[TimeControl "40/7200:0"]

1. e4 {[%emt 0:00:00]} c5 {[%emt 0:00:00]} 2. Nf3 {[%emt 0:00:00]} d6 {[%emt 0:00:00]} 3. d4 {[%emt 0:00:00]} cxd4 {[%emt 0:00:00]} 4. Nxd4 {[%emt 0:00:00]} Nf6 {[%emt 0:00:00]} 5. Nc3 {[%emt 0:00:00]} a6 {[%emt 0:00:00]} 6. Be2 {[%emt 0:00:00]} e5 {[%emt 0:00:00]} 7. Nb3 {[%emt 0:00:00]} Be7 {[%emt 0:00:00]} 8. O-O {[%emt 0:00:00]} Be6 {[%emt 0:00:00]} 9. a4 {[%emt 0:04:24]} O-O {[%emt 0:00:23]} 10. Nd2 {[%emt 0:01:29]} Nbd7 {[%emt 0:00:07]} 11. f3 {[%emt 0:10:53]} Nh5 {[%emt 0:01:50]} 12. Nc4 {[%emt 0:00:57]} Qc7 {[%emt 0:00:42]} 13. Nd5 {[%emt 0:06:27]} Bxd5 {[%emt 0:04:39]} 14. Qxd5 {[%emt 0:00:00]} Nf4 {[%emt 0:00:56]} 15. Bxf4 {[%emt 0:04:03]} exf4 {[%emt 0:00:38]} 16. c3 {[%emt 0:13:52]} Ne5 {[%emt 0:07:19]} 17. Kh1 {[%emt 0:11:08]} Rac8 {[%emt 0:02:56]} 18. Na5 {[%emt 0:07:33]} b6 {[%emt 0:04:47]} 19. Nb3 {[%emt 0:02:19]} a5 {[%emt 0:09:54]} 20. Nd4 {[%emt 0:05:23]} Qc5 {[%emt 0:04:05]} 21. Nf5 {[%emt 0:03:49]} Rc7 {[%emt 0:01:04]} 22. Rad1 {[%emt 0:01:04]} Rd8 {[%emt 0:04:04]} 23. Rd2 {[%emt 0:10:38]} g6 {[%emt 0:00:40]} 24. Qxc5 {[%emt 0:05:00]} bxc5 {[%emt 0:00:17]} 25. Nxe7+ {[%emt 0:00:59]} Rxe7 {[%emt 0:00:00]} 26. Rfd1 {[%emt 0:00:47]} Rb7 {[%emt 0:01:12]} 27. Bb5 {[%emt 0:02:09]} Rb6 {[%emt 0:01:12]} 28. Rd5 {[%emt 0:00:26]} f6 {[%emt 0:00:14]} 29. Rxc5 {[%emt 0:02:20]} Kf7 {[%emt 1:13:01]} 30. Rc7+ {[%emt 0:02:57]} Ke6 {[%emt 0:00:00]} 31. Rxh7 {[%emt 0:02:10]} Nd7 {[%emt 0:00:00]} 32. Bc4+ {[%emt 0:01:17]} d5 {[%emt 0:00:00]} 33. Bxd5+ {[%emt 0:00:00]} Kd6 {[%emt 0:00:00]} 34. Bc4+ {[%emt 0:01:28]} Kc7 {[%emt 0:00:00]} 35. Bb5 {[%emt 0:00:00]} Rd6 {[%emt 0:00:00]} 36. Rxd7+ {[%emt 0:00:00]} R8xd7 {[%emt 0:00:00]} 37. Re1 {[%emt 0:00:01]} Rd1 {[%emt 0:00:00]} 38. Rg1 {[%emt 0:00:00]} Rxg1+ {[%emt 0:00:00]} 39. Kxg1 {[%emt 0:00:00]} Rd1+ {[%emt 0:00:00]} 40. Kf2 {[%emt 0:00:00]} Rd2+ {[%emt 0:00:00]} 41. Kf1 {[%emt 1:59:04]} Rxb2 {[%emt 0:49:30]} 42. c4 {[%emt 0:00:00]} Kb6 {[%emt 0:00:00]} 43. g3 {[%emt 0:02:44]} g5 {[%emt 0:00:00]} 44. Kg1 {[%emt 0:00:31]} fxg3 {[%emt 0:00:00]} 45. hxg3 {[%emt 0:00:00]} Kc5 {[%emt 0:00:00]} 46. f4 {[%emt 0:02:54]} Kd4 {[%emt 0:00:00]} 47. e5 {[%emt 0:00:00]} fxe5 {[%emt 0:00:23]} 48. fxg5 {[%emt 0:00:00]} Kc5 {[%emt 0:00:48]} 49. g6 {[%emt 0:01:01]} Rd2 {[%emt 0:00:00]} 50. Be8 {[%emt 0:01:15]} Rd4 {[%emt 0:00:00]} 51. Kh2 {[%emt 0:03:33]} Kd6 {[%emt 0:00:22]} 52. Kh3 {[%emt 0:00:15]} e4 {[%emt 0:01:08]} 53. g7 {[%emt 0:00:00]} e3 {[%emt 0:00:00]} 54. Bh5 {[%emt 0:00:06]} Rg4 {[%emt 0:00:34]} 55. Bxg4 {[%emt 0:05:04]} 1-0

[Event "Klatovy Open-B 2024"]
[Site "Klatovy"]
[Date "2024.06.30"]
[Round "2.14"]
[White "Kasik, Denis"]
[Black "Kusova, Nikola"]
[Result "1-0"]
[ECO "C42"]
[WhiteElo "1596"]
[BlackElo "1696"]
[Annotator "NA RC"]
[PlyCount "59"]
[EventDate "2024.06.21"]
[EventType "swiss"]
[EventCountry "CZE"]
[SourceTitle "playchess.com"]
[Source "ChessBase"]
[SourceQuality "1"]
[TimeControl "40/7200:0"]

1. e4 {[%emt 2:00:00]} e5 2. Nf3 Nf6 3. Nc3 {[%emt 0:00:00]} Bb4 {[%emt 2:00:00]} 4. d3 {[%emt 0:00:00]} O-O {[%emt 0:00:00]} 5. a3 {[%emt 0:00:00]} Bxc3+ {[%emt 0:00:00]} 6. bxc3 {[%emt 0:00:00]} Nc6 {[%emt 0:00:00]} 7. Bg5 {[%emt 0:00:00]} h6 {[%emt 0:00:00]} 8. Bh4 {[%emt 0:00:00]} d6 {[%emt 0:00:00]} 9. h3 {[%emt 0:00:00]} Be6 {[%emt 0:00:00]} 10. Be2 {[%emt 0:00:00]} Qe7 {[%emt 0:00:00]} 11. O-O {[%emt 0:00:00]} Rad8 {[%emt 0:00:00]} 12. c4 {[%emt 0:00:00]} Nd4 {[%emt 0:00:00]} 13. c3 {[%emt 0:00:00]} Nxf3+ {[%emt 0:00:00]} 14. Bxf3 {[%emt 0:00:00]} c6 {[%emt 0:00:00]} 15. Bg4 {[%emt 0:00:00]} d5 {[%emt 0:00:00]} 16. Bxe6 {[%emt 0:00:00]} Qxe6 {[%emt 0:00:00]} 17. cxd5 {[%emt 0:00:00]} cxd5 {[%emt 0:00:00]} 18. exd5 {[%emt 0:00:00]} Rxd5 {[%emt 0:00:00]} 19. Re1 {[%emt 0:00:00]} Qd6 {[%emt 0:00:00]} 20. Re3 {[%emt 0:00:00]} Rd8 {[%emt 0:00:00]} 21. Bxf6 {[%emt 0:00:00]} Qxf6 {[%emt 0:00:00]} 22. Qe2 {[%emt 0:00:00]} Qd6 {[%emt 0:00:00]} 23. c4 {[%emt 0:00:00]} Rxd3 {[%emt 0:00:00]} 24. Rxe5 {[%emt 0:00:00]} Rxa3 {[%emt 0:00:00]} 25. Re8+ {[%emt 0:00:00]} Kh7 {[%emt 0:00:00]} 26. Qe4+ {[%emt 0:00:00]} Qg6 {[%emt 0:00:00]} 27. Rxa3 {[%emt 0:00:00]} f5 {[%emt 0:00:00]} 28. Qxb7 {[%emt 0:00:00]} Rd1+ {[%emt 0:00:00]} 29. Kh2 {[%emt 0:00:00]} Qd6+ {[%emt 0:00:00]} 30. Rg3 {[%emt 0:00:00]} 1-0

[Event "Klatovy Open-B 2024"]
[Site "Klatovy"]
[Date "2024.07.01"]
[Round "3.1"]
[White "Bukvaj, Martin"]
[Black "Kaderabek, Jiri"]
[Result "0-1"]
[ECO "B44"]
[WhiteElo "1687"]
[BlackElo "1984"]
[Annotator "TA"]
[PlyCount "88"]
[EventDate "2024.06.21"]
[EventType "swiss"]
[EventCountry "CZE"]
[SourceTitle "playchess.com"]
[Source "ChessBase"]
[SourceQuality "1"]
[TimeControl "40/7200:0"]

{[%evp 9,88,22,12,10,41,16,19,-6,6,0,24,13,29,31,32,0,0,0,0,0,27,-7,-11,-22,22,0,0,0,0,-105,-100,-100,-96,-98,-98,-99,-87,-91,-103,-108,-119,-115,-112,-180,-167,-285,-281,-497,-500,-500,-500,-531,-523,-1068,-1050,-2298,-913,-1669,-566,-563,-546,-711,-507,-624,-606,-1020,-723,-698,-678,-29980,-29980,-5510,-726,-771,-762,-871,-829,-1149,-1082,-29970,-29971]} 1. e4 {[%emt 0:00:00]} c5 {[%emt 0:01:27]} 2. Nf3 {[%emt 0:00:00]} e6 {[%emt 0:00:00]} 3. d4 {[%emt 0:00:00]} cxd4 {[%emt 0:00:00]} 4. Nxd4 {[%emt 0:00:00]} Nc6 {[%emt 0:00:00]} 5. Be2 {[%emt 0:00:00]} Bc5 {[%emt 0:02:00]} 6. Nb3 {[%emt 0:05:40]} Be7 {[%emt 0:00:24]} 7. Nc3 {[%emt 0:04:20]} Nf6 {[%emt 0:02:31]} 8. Be3 {[%emt 0:02:52] The position is equal.} O-O {[%emt 0:02:12]} 9. O-O {[%emt 0:01:59]} Qc7 {[%emt 0:06:29]} 10. f4 {[%emt 0:19:22]} d6 {[%emt 0:05:36]} 11. g4 {[%emt 0:10:58]} d5 {[%emt 0:06:44]} 12. exd5 {[%emt 0:14:11]} Nxd5 {[%emt 0:00:00]} 13. Nxd5 {[%emt 0:00:45]} exd5 {[%emt 0:00:00]} 14. c3 {[%emt 0:00:07]} Rd8 {[%emt 0:06:23]} 15. Qe1 {[%emt 0:10:33]} Re8 {[%emt 0:04:13]} 16. Qf2 {[%emt 0:08:45]} Bf8 {[%emt 0:12:29] [#] ...Qe7 would now be deadly.} 17. Rad1 {[%emt 0:03:52]} Qe7 {[%emt 0:03:02]} 18. Rd3 {[%emt 0:06:50][%cal Oe2f3]} b6 {[%emt 0:02:23]} 19. Nd4 {[%emt 0:06:37]} (19. Re1 $11) 19... Nxd4 $17 {[%emt 0:02:29] White is on the road to losing.} 20. cxd4 {[%emt 0:00:00]} Ba6 $36 {[%emt 0:01:18][%mdl 2048] Black is in control.} 21. Rc3 {[%emt 0:01:26]} Bxe2 {[%emt 0:00:58]} 22. Qxe2 {[%emt 0:00:00]} Qh4 {[%emt 0:04:25]} 23. Qf3 {[%emt 0:02:53][%cal Oe3f2]} Re4 {[%emt 0:04:14]} 24. Qg3 {[%emt 0:04:43]} Qe7 {[%emt 0:03:13] Black is more active.} 25. Rf3 {[%emt 0:03:25]} Qd7 {[%emt 0:02:30]} 26. Bf2 {[%emt 0:02:52]} (26. g5 $17) 26... Bd6 {[%emt 0:02:11]} 27. Rce3 {[%emt 0:01:54]} (27. h4 {keeps fighting.}) 27... g5 $19 {[%emt 0:02:26][%cal Rg5f4]} ({Resist} 27... Rxd4 28. Rd3 Rxd3 29. Rxd3 $19) 28. Rxe4 {[%emt 0:01:41]} (28. Qg2 Bxf4 (28... Rxf4 $2 29. Rxf4 Bxf4 30. Re2 $19) 29. Re1) 28... dxe4 {[%emt 0:00:00]} 29. Rc3 {[%emt 0:00:00]} gxf4 {[%emt 0:02:17]} 30. Qh4 {[%emt 0:01:38]} Be7 {[%emt 0:04:25] Against Qg5+} 31. Qh6 {[%emt 0:00:41]} Qxg4+ {[%emt 0:00:00]} 32. Kh1 {[%emt 0:01:17]} e3 {[%emt 0:06:59]} (32... f3 $142 33. Bg3 Bg5) 33. Bxe3 {[%emt 0:00:06]} fxe3 {[%emt 0:02:41]} (33... Bg5 $142 34. Bxf4 Qd1+ (34... Bxh6 $2 35. Rg3 $19) (34... Bxf4 $2 35. Qh3 $19) 35. Kg2 Bxh6) 34. Qxe3 {[%emt 0:00:00]} Bd6 {[%emt 0:01:42]} 35. h3 {[%emt 0:00:00]} Qe6 {[%emt 0:01:26]} 36. Qg5+ {[%emt 0:00:00]} Qg6 {[%emt 0:01:10]} 37. Qe3 {[%emt 0:00:00]} Kf8 {[%emt 0:00:45]} 38. Rc1 {[%emt 0:00:00]} Re8 {[%emt 0:00:00]} 39. Qf2 {[%emt 0:00:00]} Qh5 {[%emt 0:01:10]} 40. Qg2 {[%emt 0:00:00]} Qe2 {[%emt 0:01:11] [#] Threatens to win with ...Qd3.} 41. Qxe2 {[%emt 1:59:56]} Rxe2 {[%emt 1:59:37]} 42. Rc8+ {[%emt 0:00:00]} Ke7 {[%emt 0:00:17]} 43. Rh8 {[%emt 0:00:00]} Rxb2 {[%emt 0:00:51]} 44. Rxh7 {[%emt 0:00:00]} Rxa2 {[%emt 0:00:00] Weighted Error Value: White=1.18/Black=0.64.  Mistake:       	White=4     	---        Inaccurate:     	White=6     	Black=3      OK:         	White=4     	Black=13     Best:        	---       	Black=3} 0-1

[Event "Klatovy Open-B 2024"]
[Site "Klatovy"]
[Date "2024.07.01"]
[Round "3.2"]
[White "Koupil, Stepan"]
[Black "Masek, Jan"]
[Result "1-0"]
[ECO "C45"]
[WhiteElo "1685"]
[BlackElo "1839"]
[Annotator "NA RC"]
[PlyCount "21"]
[EventDate "2024.06.21"]
[EventType "swiss"]
[EventCountry "CZE"]
[SourceTitle "playchess.com"]
[Source "ChessBase"]
[SourceQuality "1"]
[TimeControl "40/7200:0"]

1. e4 {[%emt 0:00:00]} e5 {[%emt 0:00:00]} 2. Nf3 {[%emt 0:00:00]} Nc6 {[%emt 0:00:00]} 3. d4 {[%emt 0:00:00]} exd4 {[%emt 0:00:00]} 4. Nxd4 {[%emt 0:00:00]} Nxd4 {[%emt 0:00:00]} 5. Qxd4 {[%emt 0:00:00]} Qf6 {[%emt 0:00:00]} 6. Be3 {[%emt 0:00:00]} b6 {[%emt 0:00:00]} 7. e5 {[%emt 0:00:00]} Qc6 {[%emt 0:00:17]} 8. Bc4 {[%emt 0:03:06]} Bb7 {[%emt 0:01:03]} 9. Nc3 {[%emt 0:01:13]} Qxg2 {[%emt 0:06:25]} 10. O-O-O {[%emt 0:00:00]} Bc5 {[%emt 0:00:22]} 11. Qxd7+ {[%emt 0:02:27]} 1-0

[Event "Klatovy Open-B 2024"]
[Site "Klatovy"]
[Date "2024.07.01"]
[Round "3.3"]
[White "Chmelik, Ladislav"]
[Black "Trejbal, Jindrich"]
[Result "1-0"]
[ECO "A21"]
[WhiteElo "1795"]
[BlackElo "1953"]
[Annotator "TA"]
[PlyCount "103"]
[EventDate "2024.06.21"]
[EventType "swiss"]
[EventCountry "CZE"]
[SourceTitle "playchess.com"]
[Source "ChessBase"]
[SourceQuality "1"]
[TimeControl "40/7200:0"]

{[%evp 9,103,0,90,96,82,83,141,153,154,141,271,265,348,332,322,205,420,429,404,419,424,433,415,431,425,423,425,418,510,477,509,477,511,511,515,516,720,720,664,610,693,651,846,586,563,581,653,649,762,753,738,674,670,647,720,719,695,693,679,640,970,966,1020,1034,923,661,1043,1024,883,720,711,689,810,799,782,769,1203,1188,1139,1111,1871,1628,1766,1627,2268,1739,1726,1629,29977,29976,29979,29980,29991,29992,29992,29991]} 1. c4 {[%emt 0:00:00]} e5 {[%emt 0:00:00]} 2. Nc3 {[%emt 0:00:00]} Bb4 {[%emt 0:00:00]} 3. a3 {[%emt 0:00:00]} Bxc3 {[%emt 0:00:00]} 4. dxc3 {[%emt 0:00:00]} f5 {[%emt 0:03:54]} 5. e4 {[%emt 0:00:35]} Nf6 {[%emt 0:01:05]} (5... d6 $11) 6. exf5 $16 {[%emt 0:01:55] White is more active.} d6 {[%emt 0:01:24]} 7. g4 {[%emt 0:04:51][%cal Bg2g4,Bg4g5][%mdl 32]} O-O {[%emt 0:07:24]} ({Better is} 7... Qe7) 8. Bg2 {[%emt 0:00:37] White is clearly better.} Nc6 {[%emt 0:03:22]} 9. h3 {[%emt 0:05:29]} h5 {[%emt 0:07:43]} (9... Qe8 $16 {was necessary.} 10. Ne2 Kh8) 10. g5 {[%emt 0:06:53]} ({Weaker is} 10. gxh5 Bxf5 11. Ne2 Qd7 $11 (11... Nxh5 12. Bd5+ Kh8 13. Nd4 $11)) 10... Nh7 {[%emt 0:04:22]} 11. Bd5+ {[%emt 0:00:22]} ({Resist} 11. Qxh5 Rxf5 12. Bd5+ Kh8 $18) 11... Kh8 {[%emt 0:01:22]} 12. Qxh5 {[%emt 0:00:06] [#] White threatens g6 and mate.} Bxf5 {[%emt 0:01:33]} (12... Rxf5 13. Nf3 Ne7) 13. g6 $18 {[%emt 0:00:05]} Bxg6 {[%emt 0:00:00]} 14. Qxg6 {[%emt 0:00:00]} Ne7 {[%emt 0:00:25]} 15. Qd3 {[%emt 0:03:16]} Nxd5 {[%emt 0:00:53]} 16. cxd5 {[%emt 0:00:33]} Qh4 {[%emt 0:01:32]} 17. Be3 {[%emt 0:01:10]} Ng5 {[%emt 0:02:41]} 18. O-O-O {[%emt 0:01:25]} Rf6 {[%emt 0:07:42]} 19. Ne2 {[%emt 0:10:15][%cal Bg1e2,Be2g3,Bg3e4,Be4d2,Bd2f3][%mdl 32]} Nf3 {[%emt 0:05:33]} 20. Ng3 {[%emt 0:00:29]} Raf8 {[%emt 0:01:08][%cal Ba8f8,Bf8f6,Bf6g6,Bg6h6,Bh6h3,Bh3f3][%mdl 32]} 21. Ne4 {[%emt 0:01:20]} ({Not} 21. Bxa7 b6 22. Ne4 Rf4 $18) 21... R6f7 {[%emt 0:03:14]} 22. Nd2 {[%emt 0:00:51]} g5 {[%emt 0:07:57]} 23. Nxf3 {[%emt 0:00:06]} Rxf3 {[%emt 0:00:03]} 24. Qg6 {[%emt 0:03:39]} R3f5 {[%emt 0:09:54]} 25. Rhg1 {[%emt 0:01:13]} R8f6 {[%emt 0:01:35]} 26. Bxg5 {[%emt 0:05:03]} Rxg6 {[%emt 0:00:12]} 27. Bxh4 {[%emt 0:00:00]} Rh6 {[%emt 0:00:00]} 28. Rg4 {[%emt 0:01:03]} Rf4 {[%emt 0:00:09]} 29. Rxf4 {[%emt 0:02:18]} exf4 {[%emt 0:00:00][%mdl 4096] Endgame. KRB-KR} 30. Bg5 {[%emt 0:00:00][%cal Bh4g5,Bg5f4,Bf4g3][%mdl 32]} Rxh3 {[%emt 0:00:00]} 31. Bxf4 {[%emt 0:00:00]} Rf3 {[%emt 0:00:00]} 32. Bg3 {[%emt 0:00:00]} Kg7 {[%emt 0:00:00]} 33. Re1 {[%emt 0:00:33]} Rf7 {[%emt 0:00:00]} 34. Bh4 {[%emt 0:01:06] Strongly threatening Re7.} Kg6 {[%emt 0:00:00]} 35. Re7 {[%emt 0:00:41]} Rf4 {[%emt 0:00:00]} 36. Bg3 {[%emt 0:00:00]} Rc4 {[%emt 0:00:00]} 37. Kc2 {[%emt 0:01:25]} b5 {[%emt 0:00:00]} 38. Kd3 {[%emt 0:00:45]} Rc5 {[%emt 0:00:00]} 39. Kd4 {[%emt 0:01:33]} Rc4+ {[%emt 0:00:00] [#]} 40. Ke3 $1 {[%emt 0:00:35]} Kf6 {[%emt 0:00:00]} 41. Re4 {[%emt 2:00:37] Rxc4 would kill now.} Rc5 {[%emt 1:59:18]} 42. Rd4 {[%emt 0:00:00]} b4 {[%emt 0:00:12]} 43. axb4 {[%emt 0:00:00]} Rb5 {[%emt 0:00:00]} 44. Kd3 {[%emt 0:01:00]} a5 {[%emt 0:00:00]} 45. Kc4 {[%emt 0:00:00]} Rb8 {[%emt 0:00:00]} 46. b5 {[%emt 0:01:48]} Rb6 {[%emt 0:00:00]} 47. Rh4 {[%emt 0:00:45]} Kg7 {[%emt 0:00:00] Inhibits Rh7+.} 48. Bf4 {[%emt 0:00:12] Be3 would now be deadly.} Kg6 {[%emt 0:00:00]} 49. Rh8 {[%emt 0:00:00] White mates.} Kf5 {[%emt 0:00:00]} 50. Be3 {[%emt 0:00:00]} c5 {[%emt 0:00:00]} 51. dxc6 {[%emt 0:00:00]} d5+ {[%emt 0:00:00]} 52. Kc5 {[%emt 0:00:00] White took control after the opening.   Weighted Error Value: White=0.17 (very precise) /Black=0.56.  Mistake:       	---       	Black=3      Inaccurate:     	White=1     	Black=2      OK:         	White=9     	Black=7      Best:        	White=1     	Black=1} 1-0